Cogmind - Beta 17.1 @@@ ROGUE MODE // 2026.09.14 @ 05:15:25 Player: Somberlain Result: Destroyed by as-12242 with Assembled Blade Performance ------------- Evolutions (0) 0 Regions Visited (2) 400 Robots Destroyed (10) 50 Value Destroyed (244) 244 Prototype IDs (0) 0 Alien Tech Used (0) 0 Bonus (0) 0 TOTAL SCORE: 694 Bonus ------- None Cogmind --------- Core Integrity 0/250 Matter 300/300 Energy 76/100 System Corruption 0% Temperature Cool (0) Movement Core (150) Ox2 Location -10/Mines Parts ------- > --- POWER (1) -------- (None) > --- PROPULSION (2) --- (None) > --- UTILITY (2) ------ Heat Sink Small Storage Unit > --- WEAPON (2) ------- Small Laser > --- INVENTORY (8) ---- Improved Terrain Scanner Peak State ------------ > --- POWER ------------ Light Nuclear Core > --- PROPULSION ------- Aluminum Leg Aluminum Leg > --- UTILITY ---------- Heat Sink Small Storage Unit > --- WEAPON ----------- Assault Rifle Plasma Flamer > --- INVENTORY -------- Scrap Suit Improved Terrain Scanner Small Laser Small Laser [Rating: 14] Favorites ----------- Power Light Nuclear Core Engine Ion Engine Power Core Light Nuclear Core Propulsion Aluminum Leg Leg Aluminum Leg Utility Small Storage Unit Device Heat Sink Storage Small Storage Unit Weapon Assault Rifle Energy Gun Small Laser Ballistic Gun Assault Rifle Special Weapon Plasma Flamer Build | -11 -10 -10 ------- Run | Yrd Mat Min Slots Evolved . | . . . Power . | . . . Propulsion . | . . . Utility . | . . . Weapon . | . . . Parts Attached 11 | 6 2 3 Power 2 | 1 1 . Engine 1 | 1 . . Core 1 | . 1 . Reactor . | . . . Propulsion 3 | 2 1 . Treads . | . . . Leg 3 | 2 1 . Wheel . | . . . Hover . | . . . Flight . | . . . Utility 2 | 1 . 1 Device 1 | . . 1 Storage 1 | 1 . . Processor . | . . . Hackware . | . . . Protection . | . . . Artifact . | . . . Weapon 4 | 2 . 2 Energy Gun 2 | 1 . 1 Energy Cannon . | . . . Ballistic Gun 1 | 1 . . Ballistic Cannon . | . . . Launcher . | . . . Special Weapon 1 | . . 1 Impact Weapon . | . . . Slashing Weapon . | . . . Piercing Weapon . | . . . Special Melee Weapon . | . . . Unidentified Prototypes . | . . . Parts Lost 7 | . 1 6 Power 1 | . . 1 Propulsion 3 | . 1 2 Utility . | . . . Weapon 3 | . . 3 Highest Loss Streak 4 | . 1 4 To Critical Strikes . | . . . Average Backups 2 | . 1 2 Power . | . . . Propulsion . | . . . Utility . | . . 1 Weapon 1 | . . 1 Tool/Special . | . . . Unused Backups 2 | . . 2 Power . | . . . Propulsion . | . . . Utility 2 | . . 2 Weapon . | . . . Tool/Special . | . . . Average Slot Usage (%) 84 | . 84 84 Engine 2 | . 5 . Core 9 | . 8 10 Leg 26 | . 27 25 Device 6 | . . 10 Storage 14 | . 14 14 Energy Gun 6 | . 14 1 Ballistic Gun 12 | . 14 10 Special Weapon 6 | . . 10 Peak Build Rating 14 | 6 8 14 Average Rating 8 | 4 7 10 On Entrance 4 | . 6 8 Avg Prop Armor Cover (%) . | . . . Naked Turns . | . . . Heaviest Build 16 | 13 13 16 Greatest Support 20 | 20 20 20 Greatest Overweight (x) . | . . . Average Overweight (x) . | . . . Largest Inventory Capacity 8 | 8 8 8 Average Capacity 7 | 6 8 8 Most Carried 5 | . 2 5 Average Carried 2 | . 1 2 Final Capacity 8 | 8 8 8 Final Carried 2 | . 2 1 Class Distribution -------------------- 100% | Mutant Dominant Class ---------------- Mutant | -10/Materials Mutant | -10/Mines Resources | -11 -10 -10 ----------- Run | Yrd Mat Min Matter Collected 423 | 228 137 58 Remotely . | . . . Salvage Created 444 | . 400 44 Parts 11 | . 10 1 Haulers Intercepted . | . . . Recyclers Shooed 2 | . 1 1 Parts Field Recycled . | . . . Retrieved Matter . | . . . Parts Self-Destructed . | . . . Prevented . | . . . Parts Restored . | . . . Kills | -11 -10 -10 ------- Run | Yrd Mat Min Combat Hostiles Destroyed 8 | . 6 2 Guns 7 | . 6 1 Cannons 1 | . . 1 Classes Destroyed 5 | . 4 1 Recycler 2 | . 2 . Watcher 1 | . 1 . Swarmer 2 | . 2 . Grunt 5 | . 4 1 Assembled 1 | . . 1 Best Kill Streak 4 | . 4 1 Combat Bots Only 2 | . 2 1 Max Kills in Single Turn 2 | . 2 1 Gunslinging . | . . . Exploded . | . . . Melee . | . . . Uniques/NPCs Destroyed . | . . . Combat | -11 -10 -10 -------- Run | Yrd Mat Min Hostile Shots Fired 75 | . 47 28 Missed 24 | . 16 8 Hits 51 | . 31 20 Melee 2 | . . 2 Projectile 49 | . 31 18 AOE 6 | . . 6 Critical Strikes 2 | . 2 . Damage Taken 915 | . 398 517 Core 265 | . 71 194 Absorbed by Shields . | . . . Core Remaining (%) 100 | 100 . . Volleys Fired 41 | . 30 11 Largest 2 | . 2 2 Hottest 120 | . 60 120 Shots Fired 79 | . 57 22 Gun 73 | . 57 16 Cannon . | . . . Launcher . | . . . Special 6 | . . 6 Kinetic 36 | . 30 6 Thermal 43 | . 27 16 Explosive . | . . . Electromagnetic . | . . . Robot Hit Streak 7 | . 7 3 Robot Miss Streak 5 | . 3 5 Penetration Max . | . . . Secondary Targets 2 | . 2 . Max Gunslinging Chain 1 | . 1 . Shots Hit Robots 46 | . 35 11 Core Hits 23 | . 16 7 Critical Kills . | . . . Critical Parts Destroyed . | . . . Critical Strikes 1 | . . 1 Burn 1 | . . 1 Melee Attacks . | . . . Impact . | . . . Slashing . | . . . Piercing . | . . . Sneak Attacks . | . . . Combat Hostiles . | . . . Follow-up Attacks . | . . . Damage Inflicted 637 | . 489 148 Guns 571 | . 489 82 Cannons . | . . . Explosions . | . . . Melee . | . . . Ramming 12 | . . 12 Kinetic 271 | . 245 26 Thermal 354 | . 244 110 Explosive . | . . . Electromagnetic . | . . . Impact . | . . . Slashing . | . . . Piercing . | . . . Highest Corruption . | . . . Average Corruption . | . . . Corruption Purged . | . . . Corruption Blocked . | . . . Overload Shots . | . . . Overflow Damage . | . . . Projectiles . | . . . Explosions . | . . . Melee . | . . . Knockbacks . | . . . Impact . | . . . Kinetic . | . . . Secondary . | . . . Self-Inflicted Damage . | . . . Shots . | . . . Rammed . | . . . Targets Rammed 5 | . . 5 Kicked 5 | . . 5 Crushed . | . . . Highest Temperature 337 | . 174 337 Average Temperature 120 | . 85 179 Received Heat Transfer 264 | . 231 33 Siege Activations . | . . . Martial Activations . | . . . Shielding Activations . | . . . Robots Disrupted 1 | . . 1 Combat Hostiles 1 | . . 1 Robots Corrupted . | . . . Combat Hostiles . | . . . Parts Fried . | . . . Impact Corruptions . | . . . Robots Melted . | . . . Combat Hostiles . | . . . Parts Melted . | . . . Heat Transferred 1155 | . 550 605 Parts Sabotaged . | . . . Parts Stolen . | . . . Parts Stripped . | . . . Power Chain Reactions . | . . . Alert | -11 -10 -10 ------- Run | Yrd Mat Min Maximum Alert Level . | . . . Low Security (%) 100 | 100 100 100 Level 1 . | . . . Level 2 . | . . . Level 3 . | . . . Level 4 . | . . . Level 5 . | . . . High Security . | . . . Max Security . | . . . Peak Influence 127 | . 127 16 Initial 16 | . . 16 Average 25 | . 63 1 Influence Increases 281 | . 261 20 Destroy 0b10 Robot/C 140 | . 120 20 Destroy 0b10 Robot/NC 15 | . 15 . Destroy Leader 32 | . 32 . Successful Hack 19 | . 19 . Partial Spotted 15 | . 15 . Lose Combat Pursuer 60 | . 60 . Influence Decreases 281 | . 217 64 Entered New Map 28 | . . 28 Time Decay 243 | . 207 36 Lost Part 10 | . 10 . Squads Dispatched . | . . . Investigation . | . . . Extermination . | . . . Reinforcement . | . . . Assault . | . . . Garrison . | . . . Intercept . | . . . Searches Triggered . | . . . Construction Impeded . | . . . Haulers Reinforced . | . . . Active Scanning Responses . | . . . Cargo Convoy Interrupts . | . . . Stealth | -11 -10 -10 --------- Run | Yrd Mat Min Distress Signals 1 | . . 1 Communications Jammed . | . . . Distress Signals . | . . . Times Spotted 38 | . 13 25 Peak Tracking Total 21 | . 5 21 Tactical Retreats 5 | . 3 2 Traps | -11 -10 -10 ------- Run | Yrd Mat Min Traps Triggered . | . . . Indirectly . | . . . Trap Hack Attempts . | . . . Triggered . | . . . Disarmed . | . . . Reprogrammed . | . . . Reused . | . . . Traps Extracted . | . . . Installed . | . . . Triggered . | . . . Machines | -11 -10 -10 ---------- Run | Yrd Mat Min Machines Disabled . | . . . Max in Single Turn . | . . . Machines Repaired . | . . . Machines Dismantled . | . . . Machines Sabotaged . | . . . Overloaded Fab Kills . | . . . Hacking | -11 -10 -10 --------- Run | Yrd Mat Min Machines Accessed 2 | . 2 . Terminals 2 | . 2 . Fabricators . | . . . Repair Stations . | . . . Recycling Units . | . . . Scanalyzers . | . . . Garrison Access . | . . . Total Hacks 6 | . 6 . Successful 3 | . 3 . Failed 3 | . 3 . Catastrophic . | . . . Database Lockouts . | . . . Manual 6 | . 6 . Terminals 6 | . 6 . Fabricators . | . . . Repair Stations . | . . . Recycling Units . | . . . Scanalyzers . | . . . Garrison Access . | . . . Terminal Hacks 3 | . 3 . Robot Analysis 2 | . 2 . Branch Access Points 1 | . 1 . Fabricator Hacks . | . . . Repair Station Hacks . | . . . Recycling Unit Hacks . | . . . Scanalyzer . | . . . Garrison Access Hacks . | . . . Unauthorized Hacks . | . . . Terminals . | . . . Fabricators . | . . . Repair Stations . | . . . Recycling Units . | . . . Scanalyzers . | . . . Garrison Access . | . . . Data Cores Recovered . | . . . Used . | . . . Hacking Detections 2 | . 2 . Full Trace Events . | . . . Feedback Events . | . . . Feedback Blocked . | . . . Robot Schematics Acquired . | . . . Robots Built . | . . . Authchips . | . . . Time . | . . . Total Robot Build Rating . | . . . Part Schematics Acquired . | . . . Parts Built . | . . . Authchips . | . . . Time . | . . . Total Part Build Rating . | . . . Part Studies Acquired . | . . . Parts Repaired . | . . . Time . | . . . Parts Recycled . | . . . Recycled Matter . | . . . Retrieved Matter . | . . . Retrieved Components . | . . . Parts Scanalyzed . | . . . Part Schematics Acquired . | . . . Parts Damaged . | . . . Bothacking | -11 -10 -10 ------------ Run | Yrd Mat Min Used RIF Installer . | . . . Robots Hacked . | . . . Non-combat . | . . . Combat . | . . . Robot Hacks Applied . | . . . Relay Couplers Released . | . . . Fabnet Peak Effective % . | . . . Robots Rewired 1 | . . 1 Allies Hacked . | . . . Hacks Repelled . | . . . Allies | -11 -10 -10 -------- Run | Yrd Mat Min Total Allies 3 | . . 3 Largest Group 3 | . . 3 Highest-Rated Group 66 | . . 66 Highest-Rated Ally 31 | . . 31 Total Orders . | . . . Ally Attacks 8 | . . 8 Total Damage 72 | . . 72 Kills 2 | . . 2 Allies Corrupted . | . . . Allies Melted . | . . . Intel | -11 -10 -10 ------- Run | Yrd Mat Min Active Infowar (turns) . | . . . Robot Analysis Total 2 | . 2 . Derelict Logs Recovered 1 | . . 1 Drone Launches . | . . . Drone Recoveries . | . . . Exploration | -11 -10 -10 ------------- Run | Yrd Mat Min Turns Passed 1228 | 60 492 676 Spaces Moved 751 | 46 227 478 Core 5 | 5 . . Treads . | . . . Legs 746 | 41 227 478 Wheels . | . . . Hover . | . . . Flight . | . . . Fastest Speed 50 | 50 120 120 Average Speed 119 | 112 120 120 Slowest Speed 120 | 120 120 120 Overloaded Moves . | . . . Propulsion Burnouts . | . . . Robots Hopped . | . . . Potential Cave-ins . | . . . Cave-ins Triggered . | . . . Exploration Rate (%) 40 | 3 45 72 Regions Visited 2 Branch Regions 1 Pre-discovered Areas . | . . . Known Exits Taken 1 | . 1 . Unknown Exits Taken 1 | 1 . . Scrap Searched 1 | . . 1 Spaces Dug . | . . . Terrain Destroyed . | . . . Melee . | . . . Projectile . | . . . AOE . | . . . Terrain Rammed . | . . . Walls Destroyed . | . . . Machines Disabled . | . . . Actions | -11 -10 -10 --------- Run | Yrd Mat Min Total 995 | 51 390 554 Wait 177 | . 125 52 Move 749 | 45 226 478 Hop . | . . . Pick Up 7 | . 5 2 Fast Attach 7 | 6 . 1 Attach 3 | . 1 2 Detach . | . . . Swap 2 | . 1 1 Drop 3 | . 2 1 Fire 41 | . 30 11 Melee . | . . . Ram . | . . . Kick 5 | . . 5 Crush . | . . . Escape Stasis . | . . . Rewire 1 | . . 1 Trap . | . . . Miscellaneous . | . . . Route ------- -11/Scrapyard -10/Materials (discovered 3 exits: [*Mat] / *Min / [*Sub]) -10/Mines (discovered 3 exits: [*Mat x2] / [*Sub]) History --------- Turn | Location | Event 13 | -11/Scrapyard | Discovered new exit (range 15) 61 | -11/Scrapyard | Entered Materials 76 | -10/Materials | Identified exit to Mines 287 | -10/Materials | Discovered new exit (range 16) 306 | -10/Materials | Build established: Mutant 425 | -10/Materials | Discovered new exit (range 5) 553 | -10/Materials | Entered Mines 569 | -10/Mines | A weapon hastily lodged in a ceiling crevice suddenly fell to the ground 660 | -10/Mines | Discovered new exit (range 12) 675 | -10/Mines | Learned Materials trap positions 688 | -10/Mines | Found a Scrap Suit stashed away for nefarious purposes 691 | -10/Mines | Found Scrap Suit 712 | -10/Mines | Discovered new exit (range 5) 745 | -10/Mines | Discovered new exit (range 6) 1051 | -10/Mines | Assembled infested the area 1080 | -10/Mines | Core integrity fell below 50% 1114 | -10/Mines | Lost 3 allies 1116 | -10/Mines | Lost 4 parts (1p1n2w) 1211 | -10/Mines | Core integrity fell below 20% 1229 | -10/Mines | Destroyed by as-12242 with Assembled Blade Last Messages --------------- 01083_ 5U-K6V(z) destroyed. 01084_ The unstable cave ceiling collapses. 01085_ Plasma Flamer destroyed. 01090_ Kicked R-06 Scavenger. 01092_ The unstable cave ceiling collapses. 01093_ K-01 Serf collects debris. 01099_ K-01 Serf system corrupted by crushing effect. 01099_ K-01 Serf destroyed. 01175_ K-01 Serf collects debris. 01190_ Kicked U-05 Engineer. 01216_ as-97125 destroyed. 01219_ Acquired 11 matter. 01220_ K-01 Serf destroyed. 01221_ Acquired 9 matter. 01222_ Kicked R-06 Scavenger. 01224_ R-06 Scavenger destroyed. 01227_ Kicked as-12242. 01229_ Aluminum Leg destroyed. 01229_ Sml. Laser destroyed. Map ----- +----------------------------------------------------+ | ???????????????????????????????????????????????? | | ??????????##############???????????????????????? | | ??????????# ####????????????????????? | | ??????????# % #????????????????????? | | ??????????# """ """ ## ###??????????????????? | | ??????????? """ """ ## #################??? | | ??????????# """ """ #### ## | | ??????????# #??# ## ##############??? | | ??????????# """ """ #??# ## #???????????????? | | ??????????# """ """ #??# #???????????????? | | ??????????# """ """ #??#### #??####?????????? | | ??????????# #?????# #### ######????? | | ??????????####### ######?????# ##???? | | ????????????????# #??????????##### #???? | | ????????????????#%#??????????????## ## #???? | | ????????????????# #???????????????###### #???? | | ????????????????# #????????????????????## #???? | | ????????????????# #######???????????????# ##### | | ????????????????# #???????????????# ## # | | ????????????????####### #?????????????### # | | ??????????????????????#%#?????????????# | | ??????????????????????#!#?????????????# | | ??????????????????????#%#?????????????## | | ??????????????????????#=#??????????????### | | ??????????????????????#%#????????????????# | | ??????????????????????#@#????????????????# | | ??????????????????????#a#???????????????## | | ??????????????????????#!#????###????????# | | ??????????????????????#%##### ##???????# | | ?????????????#####????#!= #???????# | | ????????????## ######%## ##??????## | | ????????????# *## #???????##### | | ????????????# ######### #??????????## | | ???????????## #???????#### #?????????## | | ??????????## #???????????# < #???????## | | ?????????## #????????????# ##???????# | | ?????????# ##????????????? ##????????# | | ?????????# ##??????????????? #?????????# | | ?????????## ##?????????????????#?????????## | | ??????????### #???????????????????????????### | | ????????????# #???????????????????????????# # | | ????????????# #???????????????????????????# | | ???????????## ########????????????????????# | | ??????????## #####???????????????## | | ?????????## #####%## ##??????????????# | | ?????????# ######[# ##?????????????# | | ?????????# < #?????????????## | | ?????????# #?????????????# | | ?????????# ######## #?????????????## | | ????????## ##?????## ##????????????? | +----------------------------------------------------+ Best States ------------- Heat Dissipation 35 Energy Generation 14 Energy Capacity 250 Matter Stores 300 Matter Capacity 300 Sight Range 16 Terrain Scan Density 10 Evasion (%) 55 Item Schematics ----------------- None Robot Schematics ------------------ None Fabricated ------------ Nothing Repaired ---------- Nothing Studied --------- None Alien Tech Used ----------------- None Achievements -------------- None Challenges ------------ None Game ------ Seed PiercelightCompactBeacon Manual? 0 Play Time 00:08:44 Cumulative 111.4 hours Start 2026.09.14 @ 05:09:15 End 2026.09.14 @ 05:15:25 Sessions 1 Manual Loads 0 Difficulty Rogue Special Mode None Game No. 130 Rogue 130 Adventurer 0 Explorer 0 Win Type - Total 0 Types 0/0/0/0/0/0/0/0/0/0 Lore% 45 Gallery% 52 Achievement% 42 Wizard Run 0 Options --------- Layout 1 ASCII 0 Keyboard 0 Movement Mouse Keybinds 0 Fullscreen 2 Font 24/Smallcaps Map View 50x35 Zoom Use 0% Tactical HUD 1 Map Filters NONE Filters NONE Steam 1 RUN: bdb4e577-ac56-4f52-9ace-cdb2d8ec5eea